bitfinex-derivatives/quotes_ETHF0:USTF0_20250116
["timestamp","ask_amount","ask_price","bid_price","bid_amount"]
[1737014646727,3.25574312,3384.0,3383.6,3.664]
[1737014646728,3.25574312,3384.0,3383.6,3.2078]
[1737014646928,2.31884312,3383.7,3383.3,0.59121]
[1737014647136,5.52664312,3383.4,3383.3,0.59121]
[1737014647435,5.52664312,3383.4,3383.2,0.59123]
[1737014647627,1.4109,3383.3,3383.2,0.59123]
[1737014648334,1.4109,3383.3,3383.0,0.59127]
[1737014648535,2.31884312,3383.1,3383.0,0.59127]
[1737014648735,0.4877,3383.3,3383.2,0.59124]
[1737014649637,2.31884312,3383.7,3383.6,0.59117]
[1737014649838,3.48384312,3383.7,3383.6,0.59117]
[1737014650937,3.2078,3383.8,3383.1,0.4799]
[1737014651134,3.2078,3383.8,3383.7,0.59115]
[1737014654753,1.165,3384.6,3384.3,0.59105]
[1737014655052,1.165,3384.6,3384.4,0.59102]
[1737014655245,2.31884312,3384.5,3384.4,0.59102]
[1737014658350,3.48384312,3384.5,3384.4,0.59102]
[1737014670364,3.95234312,3384.5,3384.4,0.59102]
[1737014670863,3.95234312,3384.5,3383.5,3.6978]
[1737014671060,2.31884312,3383.6,3383.5,0.59119]
[1737014684271,1.161,3383.8,3383.1,3.6554]
[1737014684576,1.161,3383.7,3383.6,0.59117]
[1737014686073,4.1315,3383.9,3383.8,0.59114]
[1737014686278,3.6777,3383.9,3383.8,0.59114]
[1737014686475,3.2078,3383.9,3383.8,0.59114]
[1737014686677,0.9222,3384.3,3384.2,0.59107]
[1737014686878,0.4625,3384.3,3384.2,0.59107]
[1737014687071,2.31884312,3384.4,3384.3,0.59105]
[1737014687270,3.2078,3384.5,3384.0,0.4523]
[1737014687571,3.2078,3384.5,3384.4,0.59103]
[1737014691371,3.2078,3384.5,3384.3,0.59104]
[1737014691768,3.2078,3384.5,3384.2,0.59105]
[1737014691976,2.31884312,3384.3,3384.2,0.59105]
[1737014692176,2.31884312,3384.3,3383.8,0.4715]
[1737014692479,2.31884312,3384.3,3384.0,0.59109]
[1737014692671,2.31884312,3384.3,3384.1,0.59108]
[1737014692871,2.76414312,3384.3,3384.1,0.59108]
[1737014693781,2.76414312,3384.3,3383.8,0.4715]
[1737014694078,5.52664312,3383.9,3383.1,3.2078]
[1737014694377,2.31884312,3383.6,3383.5,0.59119]
[1737014694776,2.31884312,3383.6,3383.3,0.4664]
[1737014694977,2.31884312,3383.6,3383.5,0.59119]
[1737014695777,2.77234312,3383.6,3383.5,0.59119]
[1737014697286,2.77234312,3383.6,3383.3,0.4664]
[1737014697478,2.77234312,3383.6,3383.5,0.59119]
[1737014698175,2.77234312,3383.6,3383.3,0.4664]
[1737014698376,2.77234312,3383.6,3383.5,0.59119]
[1737014698779,2.77234312,3383.6,3383.4,0.59119]
[1737014698985,3.36351312,3383.6,3383.3,1.05762]
[1737014699184,2.77234312,3383.6,3383.4,0.5912]
[1737014700081,2.77234312,3383.6,3383.3,1.05762]
[1737014700285,3.2078,3383.4,3382.5,40.8]
[1737014700479,2.31884312,3382.9,3382.8,0.59131]
[1737014702485,0.59132,3382.8,3382.4,0.59137]
[1737014702678,2.31884312,3382.5,3382.2,0.4627]
[1737014702987,2.31884312,3382.5,3382.4,0.59138]
[1737014705490,2.31884312,3382.5,3382.2,0.4627]
[1737014705681,2.91020312,3382.5,3381.9,0.4799]
[1737014705881,2.31884312,3382.0,3381.9,0.9535]
[1737014706081,2.31884312,3382.0,3381.9,1.54497]
[1737014708488,0.4644,3382.4,3382.3,0.5914]
[1737014708687,2.78324312,3382.4,3382.3,0.5914]
[1737014709683,2.78324312,3382.4,3381.9,0.9535]
[1737014709992,2.31884312,3382.0,3381.9,1.54497]
[1737014712288,2.80554312,3382.3,3381.9,0.9535]
[1737014712487,2.80554312,3382.3,3382.2,0.59142]
[1737014712689,0.4867,3382.3,3382.2,0.59142]
[1737014713293,2.31884312,3382.4,3382.3,0.5914]
[1737014713492,0.4533,3382.5,3382.4,0.59138]
[1737014713886,1.3748,3382.5,3381.9,0.9535]
[1737014714090,2.31884312,3382.4,3382.3,0.59138]
[1737014714491,2.31884312,3382.4,3382.2,0.5914]
[1737014714796,2.31884312,3382.4,3382.3,0.5914]
[1737014715296,2.91023312,3382.4,3382.1,0.59142]
[1737014715807,2.31884312,3382.4,3382.2,0.59141]
[1737014715993,2.31884312,3382.3,3382.2,0.59141]
[1737014717988,2.31884312,3382.3,3381.9,0.4736]
[1737014718393,2.31884312,3382.3,3382.2,0.59142]
[1737014721093,2.31884312,3382.3,3381.9,0.4736]
[1737014721299,2.31884312,3382.3,3382.0,0.59143]
[1737014721492,2.31884312,3382.3,3382.1,0.59143]
[1737014721693,3.2078,3382.2,3381.3,0.4487]
[1737014721893,2.31884312,3381.5,3381.4,1.05206]
[1737014723093,2.31884312,3381.5,3381.4,0.59156]
[1737014724897,2.02294312,3381.5,3381.4,0.59156]
[1737014725609,4.82524312,3381.9,3381.2,2.938]
[1737014725894,4.82524312,3381.9,3381.8,0.59149]
[1737014728397,1.3454,3381.9,3381.8,0.59149]
[1737014728702,0.4523,3381.9,3381.2,3.4038]
[1737014729199,2.31884312,3381.7,3381.6,0.59152]
[1737014729503,2.31884312,3381.7,3381.2,2.938]
[1737014729696,2.31884312,3381.4,3381.2,2.938]
[1737014730812,2.31884312,3381.4,3381.3,0.59157]
[1737014735107,2.02294312,3381.4,3381.3,0.59157]
[1737014737203,2.47714312,3381.4,3381.3,0.59157]
[1737014742009,0.4542,3381.4,3381.3,0.59157]
[1737014745110,0.1583,3381.4,3381.3,0.59157]
[1737014745608,0.74987,3381.4,3381.1,0.5916]
[1737014745820,2.31884312,3381.2,3381.1,0.59161]
[1737014748321,5.52664312,3381.2,3380.6,0.4743]
[1737014748520,2.31884312,3380.7,3380.6,1.066]
[1737014749008,0.4621,3380.9,3380.8,0.59166]
[1737014751212,0.4621,3380.9,3380.8,3.79946]
[1737014753019,2.31884312,3381.3,3380.8,3.79946]
[1737014753325,2.31884312,3381.3,3381.2,0.59159]
[1737014755521,2.02294312,3381.3,3381.2,0.59159]
[1737014761320,2.02294312,3381.3,3380.8,3.2078]
[1737014761522,2.02294312,3381.3,3381.2,0.59159]
[1737014761729,2.31884312,3381.3,3381.2,0.59159]
[1737014761929,0.4735,3381.4,3381.3,0.59157]
[1737014762930,2.31884312,3381.9,3381.2,3.2078]
[1737014763230,0.4706,3381.8,3381.7,0.5915]
[1737014764335,0.5915,3381.7,3381.5,0.59153]
[1737014764527,0.5915,3381.7,3381.4,0.59155]
[1737014764528,2.31884312,3381.6,3381.4,0.59155]
[1737014764735,5.52664312,3381.6,3381.4,0.59155]
[1737014765036,5.52664312,3381.6,3381.0,0.9209]
[1737014765337,2.02294312,3381.2,3381.1,0.59161]
[1737014766032,5.52664312,3381.6,3381.5,0.59154]
[1737014768546,5.52664312,3381.6,3381.4,0.59155]
[1737014768743,5.52664312,3381.6,3381.5,0.59154]
[1737014770139,5.52664312,3381.6,3381.4,0.59155]
[1737014770342,2.91038312,3381.5,3381.3,0.59156]
[1737014770540,3.25224312,3381.4,3381.3,0.59156]
[1737014772246,2.79574312,3381.4,3381.3,0.59156]
[1737014772447,2.80644312,3381.7,3381.2,3.2078]
[1737014772650,2.80644312,3381.7,3381.6,0.59152]
[1737014782955,2.80644312,3381.7,3381.0,0.9209]
[1737014783161,2.31884312,3381.2,3381.1,0.59161]
[1737014783452,2.31884312,3381.3,3381.2,0.59158]
[1737014784455,2.31884312,3381.3,3380.8,7.85387094]
[1737014784650,0.4755,3381.2,3381.1,0.59161]
[1737014785447,3.2078,3381.6,3381.5,0.59154]
[1737014785650,5.52664312,3381.6,3381.5,0.59154]
[1737014786048,3.2078,3381.6,3381.5,0.59154]
[1737014787060,0.9524,3381.8,3381.2,3.657]
[1737014787258,0.9524,3381.8,3381.7,0.5915]
[1737014787455,2.31884312,3381.9,3381.8,0.59149]
[1737014793957,2.91031312,3381.9,3381.6,0.59151]
[1737014794162,2.31884312,3381.9,3381.4,2.938]
[1737014794461,3.2078,3382.0,3381.5,0.59153]
[1737014794655,0.59149,3381.8,3381.5,0.59153]
[1737014794859,0.4645,3381.7,3381.5,0.59153]
[1737014795158,0.462,3381.6,3381.5,0.59153]
[1737014797163,2.78084312,3381.6,3381.5,0.59153]
[1737014799160,0.4658,3381.7,3381.6,0.59152]
[1737014799562,2.80414312,3381.9,3381.3,0.9293]
[1737014799768,3.2078,3382.0,3381.9,0.59147]
[1737014815583,0.9641,3382.1,3382.0,0.59145]
[1737014815777,3.28294312,3382.1,3382.0,0.59145]
[1737014818894,0.59145,3382.0,3381.3,4.64607094]
[1737014819081,2.31884312,3381.6,3381.3,4.64607094]
[1737014819389,0.905,3381.5,3381.4,0.59156]
[1737014821895,0.458,3381.9,3381.2,1.47898]
[1737014822190,3.24654312,3382.0,3381.9,0.59147]
[1737014840996,3.24654312,3382.0,3381.8,0.59148]
[1737014841302,2.31884312,3381.9,3381.8,0.59148]
[1737014845318,1.05018856,3381.9,3381.8,0.59148]
[1737014846703,0.9277,3382.0,3381.9,0.59147]
[1737014846914,1.97788856,3382.0,3381.9,0.59147]
[1737014848407,0.9277,3382.0,3381.9,0.59147]
[1737014848611,1.97788856,3382.0,3381.9,0.59147]
[1737014851511,1.50078856,3382.0,3381.9,0.59147]
[1737014852108,1.05018856,3382.0,3381.9,0.59147]
[1737014853017,1.05018856,3382.0,3381.9,1.06347]
[1737014857716,1.05018856,3382.2,3382.1,0.59143]
[1737014858308,1.05018856,3382.2,3382.1,1.07533]
[1737014860519,1.05018856,3382.2,3382.1,41.87533]
[1737014861420,1.05018856,3382.2,3382.1,1.07533]
[1737014862423,1.05018856,3382.2,3382.1,4.01333]
[1737014864423,3.2078,3383.1,3382.1,1.53408856]
[1737014864622,3.2078,3383.1,3383.0,0.59128]
[1737014865838,4.84924856,3383.1,3382.9,0.59128]
[1737014866024,1.51428856,3383.0,3382.9,0.59128]
[1737014866324,1.51428856,3383.0,3382.8,0.5913]
[1737014866520,2.00738856,3382.9,3382.8,0.5913]
[1737014866721,3.2078,3383.1,3383.0,0.59128]
[1737014867021,4.25798856,3383.1,3383.0,0.59128]
[1737014867426,5.53338906,3383.1,3383.0,0.59128]
[1737014867920,0.9445,3383.2,3382.8,4.149]
[1737014868122,0.9445,3383.2,3383.1,0.59126]
[1737014879435,3.2078,3383.6,3383.5,0.59119]
[1737014879630,3.6823,3383.6,3383.5,0.59119]
[1737014880745,4.1433,3383.6,3383.5,0.59119]
[1737014881641,3.2078,3384.2,3384.1,0.59108]
[1737014881843,2.77098906,3384.6,3384.5,0.591]
[1737014883743,0.4454,3384.6,3384.5,0.591]
[1737014885540,2.77098906,3384.6,3384.5,0.591]
[1737014888441,0.4454,3384.6,3384.5,0.591]
[1737014889039,3.2078,3385.0,3384.4,0.8973]
[1737014889248,0.4458,3385.1,3385.0,0.59093]
[1737014889452,0.9588,3385.3,3385.0,6.1458]
[1737014889650,0.4458,3385.6,3385.1,41.2469]
[1737014889845,0.4458,3385.6,3385.5,0.59084]
[1737014900948,0.4458,3385.6,3385.4,0.59084]
[1737014901150,0.4458,3385.6,3385.0,3.2078]
[1737014901351,0.4458,3385.6,3385.0,6.1458]
[1737014902155,0.4458,3385.6,3385.5,0.59084]
[1737014903254,0.4458,3385.6,3385.2,3.2078]
[1737014903457,2.32558906,3385.3,3385.2,3.79868]
[1737014905252,2.32558906,3385.3,3385.2,0.59088]
[1737014906055,2.32558906,3385.3,3385.2,0.59089]
[1737014906056,5.53338906,3385.3,3385.2,0.59089]
[1737014907056,5.53338906,3385.3,3385.0,2.938]
[1737014907262,5.53338906,3385.3,3384.7,2.938]
[1737014907560,5.53338906,3385.3,3385.1,0.5909]
[1737014907958,5.53338906,3385.3,3385.1,0.59089]
[1737014908163,5.53338906,3385.3,3385.2,0.59089]
[1737014908559,3.47558906,3385.6,3384.7,2.938]
[1737014908760,0.4494,3385.3,3385.2,0.59089]
[1737014909262,0.476,3385.5,3384.9,3.2078]
[1737014909460,0.476,3385.5,3385.4,0.59086]
[1737014910852,3.2078,3385.8,3385.7,0.5908]
[1737014911570,3.2078,3385.8,3385.7,41.3908]
[1737014912668,3.2078,3385.8,3385.7,0.5908]
[1737014912963,3.2078,3387.3,3385.5,8.47138906]
[1737014913160,3.25408906,3386.9,3386.4,3.2078]
[1737014913359,3.25408906,3386.9,3386.6,0.59063]
[1737014914161,3.25408906,3386.9,3386.7,0.59063]
[1737014915667,3.25408906,3386.9,3386.8,0.59061]
[1737014915864,3.25408906,3386.9,3386.7,0.59062]
[1737014916361,3.25408906,3386.9,3386.4,3.2078]
[1737014916567,3.25408906,3386.9,3386.8,0.59061]
[1737014917363,3.25408906,3386.9,3386.8,3.79841]
[1737014917867,0.4524,3386.9,3386.8,3.79841]
[1737014918759,0.4882,3387.0,3386.8,3.79841]
[1737014918760,0.4882,3387.0,3386.9,0.59059]
[1737014919162,2.32558906,3387.2,3387.1,0.59056]
[1737014920364,0.9194,3387.3,3386.8,3.2078]
[1737014920570,0.9194,3387.3,3387.2,0.59054]
[1737014921767,0.9194,3387.3,3386.8,3.2078]
[1737014922073,2.32558906,3387.2,3386.9,0.59059]
[1737014922271,2.32558906,3387.2,3387.1,0.59056]
[1737014922469,2.32558906,3387.2,3387.0,0.59056]
[1737014925270,2.32558906,3387.2,3386.9,0.59059]
[1737014925474,2.91612906,3387.2,3386.9,0.59059]
[1737014925973,2.32558906,3387.2,3386.9,0.59059]
[1737014926976,2.91613906,3387.2,3386.9,0.59059]
[1737014929374,2.91613906,3387.2,3386.8,3.2078]
[1737014929375,2.91613906,3387.2,3387.0,0.59058]
[1737014930176,2.91613906,3387.2,3386.9,0.59059]
[1737014930375,2.32558906,3387.2,3387.0,0.59057]
[1737014930680,2.91613906,3387.2,3386.9,0.59059]
[1737014932079,2.91613906,3387.2,3387.0,0.59058]
[1737014932681,2.91613906,3387.2,3386.6,3.2078]
[1737014933082,2.91613906,3387.2,3386.9,0.59058]
[1737014933484,2.91613906,3387.2,3386.6,3.2078]
[1737014933676,2.91613906,3387.2,3386.9,0.59059]
[1737014937581,2.32558906,3387.2,3387.0,0.59057]
[1737014937976,2.91612906,3387.2,3387.0,0.59057]
[1737014940487,2.91612906,3387.2,3387.0,0.59058]
[1737014941183,0.59056,3387.1,3386.9,0.59059]
[1737014941384,2.32558906,3387.2,3386.9,0.59059]
[1737014941579,2.91613906,3387.2,3386.9,0.59059]
[1737014941782,0.59058,3387.0,3386.8,0.59061]
[1737014941977,2.32558906,3386.9,3386.8,0.59061]
[1737014942379,0.59063,3386.7,3386.6,3.2078]
[1737014942575,2.91621906,3386.7,3386.6,3.2078]
[1737014943087,3.37561906,3386.7,3386.6,3.2078]
[1737014945591,3.37561906,3386.7,3386.6,2.79987083]
[1737014946988,2.78498906,3386.7,3385.6,4.001]
[1737014947191,2.32558906,3385.9,3385.8,0.59079]
[1737014947387,0.59079,3385.8,3385.6,3.79861]
[1737014947591,1.3662,3385.8,3385.6,3.79861]
[1737014947891,3.2078,3385.7,3384.6,3.2078]
[1737014948095,1.3662,3385.8,3384.9,5.23701094]
[1737014948096,2.32558906,3385.0,3384.9,5.23701094]
[1737014948288,2.91651906,3385.0,3384.7,0.59097]
[1737014948591,1.3662,3384.9,3384.7,0.59097]
[1737014949394,0.59102,3384.5,3384.3,4.64607094]
[1737014949587,2.32558906,3384.4,3384.1,0.59107]
[1737014949895,2.32558906,3384.4,3384.2,0.59105]
[1737014950095,0.59105,3384.3,3384.0,0.59109]
[1737014950288,2.32558906,3384.1,3384.0,0.59109]
[1737014952492,2.32558906,3384.1,3383.9,0.469]
[1737014952690,2.32558906,3384.1,3383.9,0.59112]
[1737014952897,2.32558906,3384.1,3384.0,0.5911]
[1737014953299,2.32558906,3384.1,3383.9,0.59111]
[1737014953593,2.32558906,3384.1,3384.0,0.5911]
[1737014960101,5.53338906,3384.1,3383.3,3.2078]
[1737014960295,2.32558906,3383.7,3383.6,0.59116]
[1737014963310,2.32558906,3383.7,3383.4,3.2078]
[1737014963508,2.32558906,3383.7,3383.6,0.59117]
[1737014966303,0.59119,3383.5,3383.2,0.59123]
[1737014966503,2.32558906,3383.3,3383.0,3.2078]
[1737014966813,2.32558906,3383.3,3383.2,0.59124]
[1737014968611,2.32558906,3383.3,3383.1,0.59125]
[1737014968808,2.32558906,3383.3,3382.9,0.4667]
[1737014968809,2.32558906,3383.3,3383.0,0.59128]
[1737014969109,2.32558906,3383.3,3383.2,0.59124]
[1737014970817,2.91681906,3383.3,3383.0,0.59128]
[1737014971008,2.32558906,3383.3,3383.1,0.59125]
[1737014971209,2.32558906,3383.3,3383.2,0.59124]
[1737014974207,2.32558906,3383.3,3383.1,0.59124]
[1737014974414,2.32558906,3383.3,3383.2,0.59124]
[1737014979320,2.32558906,3383.3,3382.7,3.5278]
[1737014979517,2.32558906,3383.3,3383.2,0.59124]
[1737014980421,2.32558906,3383.3,3383.1,0.59125]
[1737014980615,2.32558906,3383.3,3383.2,0.59124]
[1737014981722,2.32558906,3383.3,3382.7,3.5278]
[1737014982223,2.32558906,3383.3,3382.7,0.32]
[1737014982626,2.32558906,3383.3,3382.8,0.59131]
[1737014982922,2.32558906,3383.3,3383.2,0.59124]
[1737014986830,4.1548,3383.4,3383.3,0.59122]
[1737014987331,3.6717,3383.4,3383.3,0.59122]
[1737014987527,3.2078,3383.4,3383.3,0.59122]
[1737014987734,3.2078,3383.8,3383.7,0.59115]
[1737014991435,0.9536,3384.3,3383.7,2.938]
[1737014991634,3.24588906,3384.6,3384.5,0.59101]
[1737014991936,3.24588906,3384.6,3384.4,0.59102]
[1737014992339,3.83688906,3384.6,3384.4,0.59102]
[1737014992641,3.24588906,3384.6,3384.3,0.59104]
[1737014992935,2.32558906,3384.4,3383.8,3.2078]
[1737014993238,2.32558906,3384.1,3384.0,0.59109]
[1737014996225,0.59111,3384.0,3383.7,2.938]
[1737014996433,2.32558906,3383.8,3383.7,0.59114]
[1737014996629,2.91672906,3383.8,3383.2,3.2078]
[1737014996827,2.32558906,3383.8,3383.7,0.59115]
[1737014997127,5.53338906,3383.8,3383.7,0.59115]
[1737014998138,5.53338906,3383.8,3383.2,3.2078]
[1737014998332,2.32558906,3383.3,3383.2,3.79904]
[1737015003140,0.4699,3383.4,3383.3,0.59122]
[1737015003340,0.4788,3383.5,3383.4,0.59121]
[1737015003540,3.23978906,3383.7,3383.3,40.8]
[1737015003741,3.23978906,3383.7,3383.6,0.59117]
[1737015005645,3.23978906,3383.7,3382.3,6.96910641]
[1737015005864,2.32558906,3382.7,3382.6,0.59135]
[1737015006049,2.32558906,3383.0,3382.9,0.59129]
[1737015008246,2.32558906,3383.0,3382.4,3.2078]
[1737015008444,2.32558906,3383.0,3382.8,0.5913]
[1737015008949,2.77648906,3383.0,3382.8,0.5913]
[1737015009543,3.36776906,3383.0,3382.7,0.59132]
[1737015009851,0.5913,3382.9,3382.7,0.59132]
[1737015010041,2.77648906,3383.0,3382.4,3.2078]
[1737015010545,2.77648906,3383.0,3382.9,0.59129]
[1737015031364,1.50047227,3383.0,3382.9,0.59129]
[1737015032564,1.50047227,3383.0,3382.5,40.8]
[1737015032863,1.04957227,3382.6,3382.5,41.39136]
[1737015035067,1.04957227,3382.6,3382.5,0.59136]
[1737015035964,2.09914454,3382.6,3382.4,3.2078]
[1737015036167,0.5914,3382.4,3382.0,4.64607094]
[1737015036466,0.9393,3382.5,3382.2,0.5914]
[1737015036467,0.4458,3382.3,3382.2,0.5914]
[1737015037460,1.49537227,3382.3,3382.2,0.5914]
[1737015037764,1.49537227,3382.3,3382.1,0.59142]
[1737015038061,4.70317227,3382.3,3381.9,0.59146]
[1737015038260,1.04957227,3382.0,3381.6,40.8]
[1737015038462,1.04957227,3381.7,3381.6,41.39152]
[1737015039062,1.04957227,3381.7,3381.6,0.59152]
[1737015041570,2.3270745,3381.8,3381.7,0.5915]
[1737015042759,2.3270745,3381.8,3381.5,3.2078]
[1737015042965,0.4822,3381.7,3381.6,0.59151]
[1737015044463,0.4822,3381.7,3381.0,4.68687]
[1737015044464,0.4822,3381.7,3381.0,6.1458]
[1737015044668,2.3270745,3381.2,3381.1,0.59161]
[1737015045172,0.4712,3381.4,3381.3,0.59157]
[1737015047774,0.5916,3381.2,3380.6,3.2078]
[1737015047973,2.3270745,3380.9,3380.6,3.2078]
[1737015048176,0.4717,3381.1,3381.0,0.59163]
[1737015050571,0.4458,3381.3,3381.0,3.2078]
[1737015050773,0.4458,3381.3,3381.2,0.59159]
[1737015050978,2.3270745,3381.8,3381.0,3.2078]
[1737015051274,2.3270745,3381.8,3381.7,0.5915]
[1737015053176,3.2078,3382.0,3381.9,0.59147]
[1737015053387,0.9566,3382.7,3382.5,0.59136]
[1737015053579,0.4814,3382.6,3382.0,0.3212]
[1737015053777,2.8084745,3382.6,3382.4,0.59136]
[1737015053978,2.8084745,3382.6,3381.8,3.2078]
[1737015054282,0.4814,3382.6,3382.5,0.59136]
[1737015054878,2.8084745,3382.6,3382.5,0.59136]
[1737015056678,2.8084745,3382.6,3381.8,3.2078]
[1737015056884,2.3270745,3382.2,3381.9,0.59146]
[1737015057085,0.9069,3382.1,3381.4,3.6726]
[1737015057285,0.9069,3382.1,3381.9,0.59145]
[1737015057478,0.4861,3382.0,3381.9,0.59145]
[1737015057789,4.28536,3382.0,3381.7,0.5915]
[1737015058080,2.3270745,3381.8,3381.7,0.5915]
[1737015060180,2.3270745,3381.8,3381.6,0.59151]
[1737015060578,3.6939,3382.0,3381.1,0.7859]
[1737015060892,2.3270745,3381.9,3381.7,0.5915]
[1737015062088,2.3270745,3381.9,3381.8,0.59149]
[1737015063784,2.3270745,3381.9,3381.1,0.7859]
[1737015063989,2.3270745,3381.6,3381.0,3.2078]
[1737015064190,2.3270745,3381.6,3381.5,0.59154]
[1737015065085,2.0311745,3381.6,3381.5,0.59154]
[1737015067987,2.3270745,3381.9,3381.0,3.2078]
[1737015068182,3.6939,3382.0,3381.9,0.59147]
[1737015072186,0.4861,3382.0,3381.9,0.59147]
[1737015072792,4.3678,3382.5,3381.5,1.2371]
[1737015072793,5.5348745,3382.5,3382.4,0.59138]
[1737015073392,6.0026745,3382.5,3382.4,0.59138]
[1737015080395,6.5940345,3382.5,3382.3,0.59139]
[1737015080599,0.4504,3382.4,3382.3,0.5914]
[1737015080789,0.4504,3382.4,3382.2,0.59141]
[1737015081189,1.04178,3382.4,3381.8,3.2078]
[1737015081390,2.3270745,3382.1,3382.0,0.59144]
[1737015082499,2.3270745,3382.1,3381.6,0.7947]
[1737015082693,0.486,3382.0,3381.7,0.5915]
[1737015082893,0.486,3382.0,3381.9,0.59147]
[1737015092606,0.4691,3382.2,3382.1,0.59143]
[1737015093098,0.4532,3382.3,3382.2,0.59142]
[1737015107420,0.4891,3382.6,3382.5,0.59136]
[1737015107816,0.4891,3382.6,3382.2,3.2078]
[1737015108020,2.3270745,3382.3,3382.2,3.79921]
[1737015109115,2.3270745,3382.3,3381.7,40.8]
[1737015109116,2.3270745,3382.3,3381.8,3.2078]
[1737015109323,2.9184845,3382.3,3382.1,0.59142]
[1737015110316,3.2078,3382.2,3381.4,8.17477094]
[1737015110523,2.3270745,3381.7,3381.6,0.59152]
[1737015111721,1.3689,3381.9,3381.4,48.65387094]
[1737015111925,1.3689,3381.9,3381.8,0.59149]
[1737015118624,1.3689,3381.9,3381.7,0.59149]
[1737015118829,1.3689,3381.9,3381.8,0.59149]
[1737015119731,1.3689,3381.9,3381.4,5.23761094]
[1737015119732,0.59151,3381.7,3381.4,5.23761094]
[1737015120030,2.3270745,3381.5,3381.4,5.23761094]
[1737015120823,5.5348745,3381.8,3381.6,0.59151]
[1737015121131,5.5348745,3381.8,3381.7,0.5915]
[1737015122031,1.3689,3381.9,3381.8,0.59149]
[1737015125436,1.3689,3381.9,3381.4,3.2078]
[1737015125732,1.96038,3381.9,3381.7,0.5915]
[1737015125930,1.96038,3381.9,3381.3,4.64607094]
[1737015126133,1.96038,3381.9,3381.6,0.59151]
[1737015126332,2.3270745,3381.7,3381.6,0.59151]
[1737015127634,2.9185845,3381.7,3381.5,0.59154]
[1737015127842,2.3270745,3381.6,3381.5,0.59154]
[1737015129634,2.9185945,3381.6,3381.1,4.64607094]
[1737015129841,2.3270745,3381.3,3381.2,0.59159]
[1737015134547,2.3270745,3381.3,3381.0,3.2078]
[1737015134744,2.3270745,3381.3,3381.1,0.5916]
[1737015134745,1.4105,3381.2,3381.1,0.5916]
[1737015140549,1.4105,3381.2,3381.1,0.59161]
[1737015143042,0.59164,3381.0,3380.8,0.59165]
[1737015143243,2.3270745,3380.9,3380.8,0.59165]
[1737015144853,2.3270745,3380.9,3380.8,0.59166]
[1737015146354,2.3270745,3381.1,3381.0,0.59162]
[1737015146652,5.5348745,3381.5,3380.7,3.2078]
[1737015146952,0.4615,3381.4,3380.7,3.2078]
[1737015147164,2.3270745,3381.2,3381.1,0.59161]
[1737015147453,0.59162,3381.1,3380.9,0.59164]
[1737015147656,2.7850745,3381.0,3380.9,0.59164]
[1737015148046,3.3766945,3381.0,3380.8,0.59165]
[1737015148248,0.4591,3380.9,3380.8,0.59165]
[1737015148450,0.9206,3380.9,3380.8,0.59165]
[1737015148643,1.51226,3380.9,3380.7,3.79947]
[1737015149745,0.9206,3380.9,3380.8,0.59166]
[1737015150646,1.51225,3380.9,3380.7,3.79947]
[1737015150858,0.9206,3380.9,3380.8,0.59166]
[1737015151054,1.51224,3380.9,3380.7,0.59167]
[1737015152151,0.9206,3380.9,3380.7,0.59167]
[1737015153056,0.9206,3380.9,3379.9,3.2078]
[1737015153057,2.0726,3380.9,3379.9,3.2078]
[1737015153259,3.2078,3380.5,3380.3,0.59175]
[1737015153455,1.4442,3380.4,3380.3,0.59175]
[1737015154159,3.7712745,3380.4,3380.3,0.59175]
[1737015155060,2.3270745,3380.7,3380.6,0.59169]
[1737015156748,0.4884,3380.8,3380.7,0.59168]
[1737015157051,2.8154745,3380.8,3380.7,0.59168]
[1737015158663,2.8154745,3380.8,3380.2,41.245]
[1737015158958,3.4071345,3380.8,3380.6,0.59168]
[1737015159561,3.4071345,3380.8,3380.2,41.245]
[1737015159859,2.3270745,3380.5,3380.3,0.59174]
[1737015160162,0.9403,3380.4,3380.3,0.59174]
[1737015160361,1.4128,3380.4,3380.3,0.59174]
[1737015160859,1.4128,3380.4,3380.1,2.938]
[1737015161060,1.4128,3380.4,3380.3,0.59175]
[1737015161560,2.00454,3380.4,3380.2,0.59176]
[1737015162362,1.4128,3380.4,3380.1,2.938]
[1737015162664,2.3270745,3380.2,3380.1,3.52978]
[1737015164770,2.32471566,3380.2,3380.1,0.59178]
[1737015165669,2.32471566,3380.2,3379.8,44.0078]
[1737015165865,2.32471566,3380.2,3380.0,0.59179]
[1737015168566,2.91648566,3380.2,3380.0,0.59179]
[1737015168860,2.32471566,3380.2,3380.0,0.59179]
[1737015169470,1.05119093,3380.1,3380.0,0.59179]
[1737015173678,1.05119093,3380.1,3379.9,0.59181]
[1737015173978,1.50809093,3380.0,3379.9,0.59181]
[1737015174576,1.50809093,3380.0,3379.6,2.938]
[1737015174880,1.05119093,3379.7,3379.6,3.52987]
[1737015179785,1.05119093,3379.7,3379.6,0.59187]
[1737015183878,1.05119093,3379.7,3379.2,3.2078]
[1737015184083,0.9339,3379.9,3379.2,3.2078]
[1737015184388,0.59185,3379.7,3379.4,0.59189]
[1737015185282,1.05119093,3379.5,3379.4,0.59189]
[1737015192584,1.05119093,3379.5,3379.4,0.91399]
[1737015199794,1.05119093,3379.5,3379.4,0.59189]
[1737015215012,2.10238186,3379.5,3378.6,4.94783935]
[1737015215217,1.05119093,3378.7,3378.6,4.94783935]
[1737015215612,1.05119093,3378.7,3378.6,4.64607094]
[1737015216720,1.05119093,3378.7,3378.6,5.23812094]
[1737015216908,1.05119093,3378.7,3378.6,0.59205]
[1737015225119,3.2078,3379.3,3378.6,0.59205]
[1737015225323,3.2078,3379.7,3379.6,0.59187]
[1737015226821,4.25899093,3379.7,3379.6,0.59187]
[1737015227221,4.25899093,3379.7,3379.1,3.2078]
[1737015227523,1.05119093,3379.2,3379.1,3.79976]
[1737015229023,2.10238186,3379.2,3379.1,3.79976]
[1737015230223,1.05119093,3379.2,3379.1,3.79976]
[1737015232923,1.05119093,3379.2,3379.1,0.59196]
[1737015233120,2.10238186,3379.2,3379.1,0.59196]